[Event "FIDE WCCC U10 2018"]
[Site "Santiago de Compostela"]
[Date "2018.11.10"]
[Round "6"]
[White "Xiao, Tong"]
[Black "Deuer, Marius"]
[Result "1/2-1/2"]
[ECO "C88"]
[WhiteElo "2022"]
[BlackElo "1695"]
[Annotator "NA RC"]
[PlyCount "118"]
[EventDate "2018.11.04"]
[EventType "swiss"]
[EventCountry "ESP"]
[SourceTitle "playchess.com"]
[Source "ChessBase"]
[SourceQuality "1"]
[TimeControl "40/5400+30:1800+30"]

1. e4 {[%emt 0:00:00]} e5 {[%emt 0:00:00]} 2. Nf3 {[%emt 0:00:00]} Nc6 {[%emt 0:00:00]} 3. Bb5 {[%emt 0:01:05]} a6 {[%emt 0:00:00]} 4. Ba4 {[%emt 0:00:08]} Nf6 {[%emt 0:00:00]} 5. O-O {[%emt 0:03:04]} Be7 {[%emt 0:00:00]} 6. Re1 {[%emt 0:00:24]} b5 {[%emt 0:00:18]} 7. Bb3 {[%emt 0:00:04]} d6 {[%emt 0:00:04]} 8. a4 {[%emt 0:00:32]} Bd7 {[%emt 0:02:53]} 9. c3 {[%emt 0:03:09]} Na5 {[%emt 0:02:41]} 10. Bc2 {[%emt 0:00:07]} c5 {[%emt 0:06:29]} 11. d3 {[%emt 0:01:13]} O-O {[%emt 0:02:45]} 12. Nbd2 {[%emt 0:02:29]} Re8 {[%emt 0:06:28]} 13. Nf1 {[%emt 0:00:56]} h6 {[%emt 0:02:45]} 14. Ng3 {[%emt 0:03:40] C90: Closed Ruy Lopez with 7...d6: Early deviations} Bf8 {[%emt 0:00:49]} 15. h3 Nc6 {[%emt 0:03:00]} 16. Nh2 {[%emt 0:11:09]} (16. d4 exd4 17. cxd4 cxd4 18. Nxd4 Nxd4 19. Qxd4 Qc7 20. Bb3 d5 21. axb5 Bc5 {1-0 (30) Yu,Y (2760)-Sevian,S (2614) chess.com INT 2018}) 16... g6 {[%emt 0:15:08]} 17. f4 {[%emt 0:03:41]} d5 $146 {[%emt 0:11:34]} ({Predecessor:} 17... exf4 18. Bxf4 b4 19. Nf3 Qc7 20. Qd2 Kh7 21. d4 bxc3 22. bxc3 cxd4 23. cxd4 {1-0 (55) Perez de Aranda,L (2216)-Pablos Tenrero,R (1859) Madrid 2009}) 18. fxe5 {[%emt 0:01:03]} Nxe5 {[%emt 0:05:47]} 19. d4 {[%emt 0:00:12]} cxd4 {[%emt 0:01:57]} 20. cxd4 {[%emt 0:00:10]} Qb6 {[%emt 0:03:28]} 21. a5 {[%emt 0:02:06]} Qa7 {[%emt 0:00:14]} 22. Kh1 {[%emt 0:00:46]} Nc6 {[%emt 0:03:14]} 23. e5 {[%emt 0:08:49]} Nh7 {[%emt 0:16:09]} 24. Be3 {[%emt 0:01:05]} Ng5 {[%emt 0:01:16]} 25. Rf1 {[%emt 0:07:19]} Bg7 {[%emt 0:03:11]} 26. Qd2 {[%emt 0:02:15]} Ne6 {[%emt 0:00:47]} 27. Rad1 {[%emt 0:03:39]} Rac8 {[%emt 0:02:29]} 28. Bb1 {[%emt 0:02:29]} Qc7 {[%emt 0:00:58]} 29. Ng4 {[%emt 0:01:01]} Nexd4 {[%emt 0:03:27]} 30. Nxh6+ {[%emt 0:02:24]} Bxh6 {[%emt 0:00:49]} 31. Bxh6 {[%emt 0:00:34]} Qxe5 {[%emt 0:00:32]} 32. Qf2 {[%emt 0:01:52]} Nf5 {[%emt 0:01:53]} 33. Nxf5 {[%emt 0:01:18]} Bxf5 {[%emt 0:00:39]} 34. Bxf5 {[%emt 0:04:27]} Qxf5 {[%emt 0:00:14]} 35. Qh4 {[%emt 0:01:54]} Qh5 {[%emt 0:02:35]} 36. Qf4 {[%emt 0:01:25]} Qf5 {[%emt 0:00:22]} 37. Qd2 {[%emt 0:01:27]} Qe6 {[%emt 0:02:30]} 38. Bg5 {[%emt 0:00:38]} d4 {[%emt 0:00:28]} 39. Qf4 {[%emt 0:00:35]} f5 {[%emt 0:00:43]} 40. Qh4 {[%emt 0:00:00]} Qf7 {[%emt 0:00:00]} 41. Bf6 {[%emt 0:01:52]} Qh7 {[%emt 0:04:35]} 42. Qg3 {[%emt 0:00:36]} Re6 {[%emt 0:14:09]} 43. Bxd4 {[%emt 0:00:58]} Nxd4 {[%emt 0:01:27]} 44. Rxd4 {[%emt 0:00:52]} Qc7 {[%emt 0:01:54]} 45. Qb3 {[%emt 0:00:29]} Qf7 {[%emt 0:00:28]} 46. Qd3 {[%emt 0:00:41]} Rcc6 {[%emt 0:02:56]} 47. b4 {[%emt 0:00:36]} Qf8 {[%emt 0:01:36]} 48. Rd8 {[%emt 0:01:58]} Re8 {[%emt 0:00:02]} 49. Qd5+ {[%emt 0:00:31]} Rce6 {[%emt 0:01:53]} 50. Re1 {[%emt 0:01:20]} Rxd8 {[%emt 0:03:46]} 51. Qxe6+ {[%emt 0:00:05]} Kg7 {[%emt 0:00:04]} 52. Qxa6 {[%emt 0:00:27]} Qxb4 {[%emt 0:01:06] [#]} 53. Rg1 {[%emt 0:00:48]} (53. Qa7+ $1 $16 Kg8 54. Qe3) 53... Re8 {[%emt 0:01:27]} 54. Qb7+ {[%emt 0:01:04]} Re7 {[%emt 0:00:16]} 55. Qb6 {[%emt 0:00:19]} Re1 $2 {[%emt 0:02:07]} (55... Qc3 $11) 56. Qc7+ $2 {[%emt 0:01:05]} ({Weiss braucht} 56. a6 $18 Kf7 57. a7 Rxg1+ 58. Qxg1) 56... Kh6 {[%emt 0:00:07]} 57. a6 {[%emt 0:00:22]} Rxg1+ {[%emt 0:01:29]} 58. Kxg1 {[%emt 0:00:02]} f4 $2 {[%emt 0:00:14] [#]} (58... Qd4+ $1 $11 {and Black is okay.} 59. Kh2 f4) 59. Kh2 $2 {[%emt 0:00:11]} (59. Qe5 $1 $18 f3 60. gxf3) 59... Qd2 $11 {[%emt 0:00:40]} 1/2-1/2

[Event "FIDE WCCC U10 2018"]
[Site "Santiago de Compostela"]
[Date "2018.11.10"]
[Round "6"]
[White "Pingin, Artem"]
[Black "Jin Yueheng"]
[Result "1/2-1/2"]
[ECO "B15"]
[WhiteElo "1981"]
[BlackElo "1914"]
[Annotator "NA"]
[PlyCount "119"]
[EventDate "2018.11.04"]
[EventType "swiss"]
[EventCountry "ESP"]
[SourceTitle "playchess.com"]
[Source "ChessBase"]
[SourceQuality "1"]
[TimeControl "40/5400+30:1800+30"]

1. e4 c6 2. d4 d5 3. Nc3 dxe4 4. Nxe4 Nf6 5. Nxf6+ exf6 6. c3 Bd6 7. Bd3 O-O 8. Qc2 $11 {LiveBook: 304 Games} Re8+ 9. Ne2 h6 10. Be3 Na6 11. O-O Nc7 12. c4 Bg4 13. h3 Bxe2 14. Bxe2 Ne6 15. Bg4 Qc7 16. Qd2 Rad8 17. d5 cxd5 18. cxd5 Nf4 19. Bxf4 Bxf4 20. Qd3 Be5 21. Qd2 Qb6 22. Rab1 Re7 23. b3 Bc7 24. Rbd1 Qd6 25. g3 Bb6 26. Kg2 Re5 27. Bf3 f5 28. Rfe1 Rde8 29. Rxe5 Rxe5 30. Re1 Rxe1 31. Qxe1 Kf8 32. Qc3 Bc7 33. Qd4 Bb8 34. Qc3 Bc7 35. Qd4 Bb6 36. Qc3 Qc5 37. Qxc5+ Bxc5 38. d6 Bxd6 39. Bxb7 Ke7 40. Bd5 h5 41. Bf3 g6 42. Be2 Ke6 43. Bc4+ Ke7 44. Be2 Bc5 45. a4 a5 46. f3 Bb4 47. g4 fxg4 48. fxg4 h4 49. Bc4 f5 50. gxf5 gxf5 51. Kf3 Kf6 52. Bd3 Ke5 53. Bc4 f4 54. Bg8 Be1 55. Bc4 Bg3 56. Bb5 Kd4 57. Bc4 Kc3 58. Bg8 Kd2 59. Be6 Ke1 60. Bg8 1/2-1/2

[Event "FIDE WCCC U10 2018"]
[Site "Santiago de Compostela"]
[Date "2018.11.10"]
[Round "6"]
[White "Vagman, Roy"]
[Black "Todev, Simeon"]
[Result "1-0"]
[ECO "B72"]
[WhiteElo "1970"]
[BlackElo "1767"]
[Annotator "NA"]
[PlyCount "119"]
[EventDate "2018.11.04"]
[EventType "swiss"]
[EventCountry "ESP"]
[SourceTitle "playchess.com"]
[Source "ChessBase"]
[SourceQuality "1"]
[TimeControl "40/5400+30:1800+30"]

1. e4 {[%emt 0:00:00]} c5 {[%emt 0:00:00]} 2. Nf3 {[%emt 0:00:22]} d6 {[%emt 0:00:17]} 3. d4 {[%emt 0:00:30]} Nf6 {[%emt 0:00:46]} 4. Nc3 {[%emt 0:00:58]} cxd4 {[%emt 0:00:18]} 5. Nxd4 {[%emt 0:00:43]} g6 {[%emt 0:00:11]} 6. Be3 {[%emt 0:00:25]} Bg7 {[%emt 0:00:06]} 7. h3 {[%emt 0:01:24]} Nc6 {[%emt 0:00:40]} 8. Qd2 {[%emt 0:00:52]} O-O {[%emt 0:00:31]} 9. O-O-O {[%emt 0:00:31]} d5 {[%emt 0:00:50]} 10. exd5 {[%emt 0:00:21]} Nxd5 {[%emt 0:00:05]} 11. Nxc6 {[%emt 0:00:22]} bxc6 {[%emt 0:00:11]} 12. Nxd5 {[%emt 0:00:22]} cxd5 {[%emt 0:00:09]} 13. Qxd5 $14 {[%emt 0:00:36]} Qc7 {[%emt 0:00:56]} 14. Qxa8 {[%emt 0:00:37]} Bf5 {[%emt 0:00:15]} 15. Qxf8+ {[%emt 0:00:08]} Kxf8 {[%emt 0:00:35]} 16. Bd3 {[%emt 0:00:49]} Be6 {[%emt 0:02:37]} 17. Kb1 {[%emt 0:03:42]} Qa5 {[%emt 0:03:51]} 18. a3 {[%emt 0:01:27]} Kg8 {[%emt 0:02:40]} 19. Be2 {[%emt 0:03:35]} h6 {[%emt 0:02:26]} 20. Rhe1 {[%emt 0:05:38]} Qc7 {[%emt 0:07:43]} 21. Bd4 {[%emt 0:26:09]} Bf5 {[%emt 0:03:25]} 22. Bd3 {[%emt 0:00:15]} Bxd4 {[%emt 0:00:45]} 23. Bxf5 {[%emt 0:00:10]} Qb6 {[%emt 0:00:43]} 24. Rxd4 {[%emt 0:01:38]} Qxd4 {[%emt 0:01:38]} 25. Bd3 {[%emt 0:00:47]} Qxf2 {[%emt 0:00:09]} 26. Rxe7 {[%emt 0:00:40]} Qxg2 {[%emt 0:00:06]} 27. Bc4 {[%emt 0:00:28]} Qg1+ {[%emt 0:11:45]} 28. Ka2 {[%emt 0:00:44]} Qc5 {[%emt 0:01:57]} 29. Bxf7+ {[%emt 0:05:14]} Kf8 {[%emt 0:00:25]} 30. Rb7 {[%emt 0:00:18]} Qxc2 {[%emt 0:01:36]} 31. Bb3 {[%emt 0:03:06]} Qf2 {[%emt 0:01:18]} 32. a4 {[%emt 0:09:32]} g5 {[%emt 0:06:18]} 33. Rh7 {[%emt 0:01:24]} Qh4 {[%emt 0:01:37]} 34. Rxa7 {[%emt 0:03:37]} Qxh3 {[%emt 0:00:17]} 35. a5 {[%emt 0:01:06]} g4 {[%emt 0:02:58]} 36. a6 {[%emt 0:01:53]} Qh5 {[%emt 0:00:31]} 37. Rf7+ {[%emt 0:03:38]} Ke8 {[%emt 0:00:18]} 38. Rf4 {[%emt 0:01:47]} Qh1 {[%emt 0:08:25]} 39. Rxg4 {[%emt 0:00:52]} Kd7 {[%emt 0:01:30]} 40. Rd4+ {[%emt 0:00:00]} Kc7 {[%emt 0:00:00]} 41. a7 {[%emt 0:04:46]} Qa8 {[%emt 0:03:25]} 42. Ra4 {[%emt 0:01:43]} Kb6 {[%emt 0:00:35]} 43. Bd1 {[%emt 0:02:42]} Qd5+ {[%emt 0:06:45]} 44. Bb3 {[%emt 0:00:14]} Qa8 {[%emt 0:00:13]} 45. Bc2 {[%emt 0:00:48]} Qd5+ {[%emt 0:01:53]} 46. Ka1 {[%emt 0:00:52]} Qh1+ {[%emt 0:00:54]} 47. Bb1 {[%emt 0:00:13]} Qa8 {[%emt 0:00:31]} 48. Be4 {[%emt 0:00:10]} Qxa7 {[%emt 0:00:12]} 49. Rxa7 {[%emt 0:00:08]} Kxa7 {[%emt 0:00:05]} 50. Ka2 {[%emt 0:00:06]} Kb6 {[%emt 0:00:05]} 51. b4 {[%emt 0:00:11]} h5 {[%emt 0:00:07]} 52. Kb3 {[%emt 0:00:05]} Kb5 {[%emt 0:00:11]} 53. Bd3+ {[%emt 0:00:07]} Kb6 {[%emt 0:00:04]} 54. Kc4 {[%emt 0:00:05]} h4 {[%emt 0:00:06]} 55. Be4 {[%emt 0:00:08]} h3 {[%emt 0:00:10]} 56. Bh1 {[%emt 0:00:07]} h2 {[%emt 0:00:11]} 57. Bg2 {[%emt 0:00:02]} Kc7 {[%emt 0:00:08]} 58. Kc5 {[%emt 0:00:05]} Kc8 {[%emt 0:00:28]} 59. Kc6 {[%emt 0:00:10]} Kb8 {[%emt 0:00:07]} 60. b5 {[%emt 0:00:13]} 1-0

[Event "FIDE WCCC U10 2018"]
[Site "Santiago de Compostela"]
[Date "2018.11.10"]
[Round "6"]
[White "Sosa Costa, Leonardo"]
[Black "Kandil, Ahmed Abdel Khalek"]
[Result "1-0"]
[ECO "C55"]
[WhiteElo "1945"]
[BlackElo "1812"]
[Annotator "NA"]
[PlyCount "59"]
[EventDate "2018.11.04"]
[EventType "swiss"]
[EventCountry "ESP"]
[SourceTitle "playchess.com"]
[Source "ChessBase"]
[SourceQuality "1"]
[TimeControl "40/5400+30:1800+30"]

1. e4 {[%emt 0:00:00]} e5 {[%emt 0:00:00]} 2. Nf3 {[%emt 0:00:00]} Nc6 {[%emt 0:00:00]} 3. Bc4 {[%emt 0:00:00]} Nf6 {[%emt 0:00:00]} 4. d3 {[%emt 0:00:00]} Be7 {[%emt 0:00:07]} 5. O-O {[%emt 0:00:34]} O-O {[%emt 0:00:09]} 6. Re1 {[%emt 0:00:22]} d6 {[%emt 0:00:09]} 7. a4 {[%emt 0:00:18]} Be6 {[%emt 0:00:15]} 8. Nbd2 {[%emt 0:03:47]} Qd7 {[%emt 0:00:42]} 9. c3 {[%emt 0:02:48]} Rad8 {[%emt 0:00:50]} 10. b4 {[%emt 0:04:10]} d5 {[%emt 0:04:37]} 11. exd5 {[%emt 0:01:16]} Bxd5 {[%emt 0:03:44]} 12. b5 {[%emt 0:09:35]} Na5 {[%emt 0:14:04]} 13. Nxe5 {[%emt 0:08:48]} Qf5 {[%emt 0:00:53]} 14. Bxd5 {[%emt 0:00:51]} Nxd5 {[%emt 0:00:59]} 15. Qf3 {[%emt 0:07:59]} Qxf3 {[%emt 0:02:16]} 16. Ndxf3 {[%emt 0:00:36]} Nxc3 {[%emt 0:09:07]} 17. Bd2 {[%emt 0:01:35]} Bb4 {[%emt 0:07:20]} 18. Rab1 {[%emt 0:04:13]} Nxb1 {[%emt 0:02:03]} 19. Bxb4 {[%emt 0:00:06]} Rfe8 {[%emt 0:00:16]} 20. Rxb1 {[%emt 0:08:27]} b6 {[%emt 0:00:27]} 21. Bxa5 {[%emt 0:00:43]} bxa5 {[%emt 0:00:18]} 22. d4 {[%emt 0:01:00]} Rd6 {[%emt 0:08:21]} 23. h3 {[%emt 0:13:33]} Rb8 {[%emt 0:00:32]} 24. Rc1 {[%emt 0:03:27]} a6 {[%emt 0:06:32]} 25. Rxc7 {[%emt 0:05:14]} axb5 {[%emt 0:00:18]} 26. Nc6 {[%emt 0:02:13]} Rf8 {[%emt 0:06:30]} 27. axb5 {[%emt 0:00:42]} a4 {[%emt 0:00:09]} 28. Ra7 {[%emt 0:00:23]} g6 {[%emt 0:00:17]} 29. Rxa4 {[%emt 0:00:11]} Rc8 {[%emt 0:00:19]} 30. Ne7+ {[%emt 0:00:13]} 1-0

[Event "FIDE WCCC U10 2018"]
[Site "Santiago de Compostela"]
[Date "2018.11.10"]
[Round "6"]
[White "Mogirzan, Matei-Valeriu"]
[Black "Kempe, Caius Emilian"]
[Result "1-0"]
[ECO "B32"]
[WhiteElo "1939"]
[BlackElo "1653"]
[Annotator "NA"]
[PlyCount "49"]
[EventDate "2018.11.04"]
[EventType "swiss"]
[EventCountry "ESP"]
[SourceTitle "playchess.com"]
[Source "ChessBase"]
[SourceQuality "1"]
[TimeControl "40/5400+30:1800+30"]

1. e4 {[%emt 0:00:00]} c5 {[%emt 0:00:00]} 2. Nf3 {[%emt 0:00:00]} Nc6 {[%emt 0:00:10]} 3. d4 {[%emt 0:00:06]} cxd4 {[%emt 0:00:38]} 4. c3 {[%emt 0:01:58]} dxc3 {[%emt 0:01:29]} 5. Nxc3 {[%emt 0:00:15]} e6 {[%emt 0:00:38]} 6. Bc4 {[%emt 0:00:49]} Qc7 {[%emt 0:00:28]} 7. O-O {[%emt 0:00:24]} Nf6 {[%emt 0:00:51]} 8. Re1 {[%emt 0:05:02]} Bc5 $11 {[%emt 0:08:01]} 9. h3 {[%emt 0:13:23]} O-O {[%emt 0:03:52]} 10. e5 {[%emt 0:01:54]} Ne8 {[%emt 0:01:03]} 11. Bd3 {[%emt 0:04:55]} f5 {[%emt 0:12:50]} 12. exf6 {[%emt 0:12:08]} Nxf6 {[%emt 0:00:13]} 13. Ne4 {[%emt 0:00:46]} Nb4 {[%emt 0:11:37]} 14. Nxf6+ {[%emt 0:11:46]} gxf6 {[%emt 0:05:35]} 15. Ne5 {[%emt 0:10:51]} f5 {[%emt 0:07:43]} 16. Bh6 {[%emt 0:01:11]} Nxd3 {[%emt 0:07:59]} 17. Qxd3 {[%emt 0:01:15]} d6 {[%emt 0:03:28]} 18. Qg3+ {[%emt 0:00:59]} Kh8 {[%emt 0:00:07]} 19. Bxf8 {[%emt 0:00:26]} dxe5 {[%emt 0:00:15]} 20. Rac1 {[%emt 0:00:53]} b6 {[%emt 0:00:40]} 21. b4 {[%emt 0:01:02]} Qf7 {[%emt 0:02:04]} 22. Bxc5 {[%emt 0:01:56]} bxc5 {[%emt 0:00:13]} 23. Qxe5+ {[%emt 0:00:48]} Kg8 {[%emt 0:00:26]} 24. Rxc5 {[%emt 0:00:28]} Bd7 {[%emt 0:01:25]} 25. Rc7 1-0

[Event "FIDE WCCC U10 2018"]
[Site "Santiago de Compostela"]
[Date "2018.11.10"]
[Round "6"]
[White "Atanasov, Anthony"]
[Black "Mardov, Dimitar"]
[Result "1/2-1/2"]
[ECO "D00"]
[WhiteElo "1916"]
[BlackElo "1985"]
[Annotator "NA RC"]
[PlyCount "123"]
[EventDate "2018.11.04"]
[EventType "swiss"]
[EventCountry "ESP"]
[SourceTitle "playchess.com"]
[Source "ChessBase"]
[SourceQuality "1"]
[TimeControl "40/5400+30:1800+30"]

1. d4 {[%emt 0:00:00]} d5 {[%emt 0:00:00]} 2. Bf4 {[%emt 0:00:00]} Nf6 {[%emt 0:00:00]} 3. e3 {[%emt 0:00:16]} e6 {[%emt 0:00:00]} 4. Nd2 {[%emt 0:00:16]} c5 {[%emt 0:00:00]} 5. c3 {[%emt 0:00:03]} Nc6 {[%emt 0:00:00]} 6. Ngf3 {[%emt 0:00:28]} Bd6 {[%emt 0:00:31]} 7. Bg3 {[%emt 0:00:05]} O-O {[%emt 0:01:41]} 8. Bb5 {[%emt 0:00:10] D02: 1 d4 d5 2 Nf3 sidelines, including 2...Nf6 3 g3 and 2...Nf6 3 Bf4} Be7 {[%emt 0:03:51] LiveBook: 37 Games} 9. Rb1 $146 {[%emt 0:04:04]} ({Predecessor:} 9. Bd3 b6 10. O-O Bb7 11. h3 Bd6 12. Bh4 Be7 13. Qb1 h6 14. a3 Nh5 15. Bxe7 Qxe7 {½-½ (64) Carlsen,M (2837)-Wang,H (2709) Riadh 2017}) 9... Bd7 {[%emt 0:05:29]} 10. Bd3 {[%emt 0:03:43]} a6 {[%emt 0:03:15]} 11. dxc5 {[%emt 0:08:09]} Bxc5 {[%emt 0:06:13]} 12. e4 {[%emt 0:01:54]} dxe4 {[%emt 0:04:26]} 13. Nxe4 {[%emt 0:00:35]} Nxe4 {[%emt 0:02:21]} 14. Bxe4 {[%emt 0:00:10]} f5 {[%emt 0:01:52]} 15. Bc2 {[%emt 0:00:46]} Be7 {[%emt 0:11:04]} 16. Bf4 {[%emt 0:14:49]} Bf6 {[%emt 0:04:09]} 17. O-O {[%emt 0:04:25]} Re8 {[%emt 0:04:03]} 18. Re1 {[%emt 0:11:26]} g6 {[%emt 0:07:31]} 19. Bb3 {[%emt 0:11:54]} Qe7 {[%emt 0:07:48]} 20. Qd2 {[%emt 0:08:05]} Na5 {[%emt 0:04:45]} 21. Bd6 {[%emt 0:14:53]} Nxb3 {[%emt 0:01:09]} 22. axb3 {[%emt 0:01:41]} Qf7 {[%emt 0:01:27]} 23. Ne5 {[%emt 0:00:35]} Bxe5 {[%emt 0:01:35]} 24. Bxe5 {[%emt 0:00:15]} Bc6 {[%emt 0:00:38]} 25. Rbd1 {[%emt 0:00:58]} Re7 {[%emt 0:01:53]} 26. Qf4 {[%emt 0:02:42]} Rd7 {[%emt 0:01:24]} 27. Bd4 {[%emt 0:01:25]} Rd5 {[%emt 0:11:36]} 28. c4 {[%emt 0:00:26]} e5 {[%emt 0:01:48]} 29. Rxe5 {[%emt 0:01:14]} Rd7 {[%emt 0:05:32]} 30. Re3 {[%emt 0:01:08]} Re8 {[%emt 0:01:03]} 31. h4 {[%emt 0:01:38]} Rxe3 {[%emt 0:00:38]} 32. Qxe3 {[%emt 0:01:44]} Qe7 {[%emt 0:00:58]} 33. Re1 {[%emt 0:04:22]} Qxe3 {[%emt 0:00:20]} 34. fxe3 {[%emt 0:00:30]} Kf7 {[%emt 0:00:42]} 35. Kf2 {[%emt 0:00:30]} f4 {[%emt 0:01:51]} 36. Bc3 {[%emt 0:01:00]} fxe3+ {[%emt 0:00:54]} 37. Rxe3 {[%emt 0:00:21]} Re7 {[%emt 0:00:33]} 38. Rd3 {[%emt 0:01:12]} Rd7 {[%emt 0:00:31]} 39. Rh3 {[%emt 0:00:41]} Re7 {[%emt 0:00:47]} 40. Rh1 {[%emt 0:00:00]} Re4 {[%emt 0:00:00]} 41. Rh3 {[%emt 0:17:03]} Rf4+ {[%emt 0:04:47]} 42. Kg1 {[%emt 0:02:28]} Ke6 {[%emt 0:06:22]} 43. Be1 {[%emt 0:07:46]} Rg4 {[%emt 0:01:59]} 44. Re3+ {[%emt 0:02:32]} Re4 {[%emt 0:01:08]} 45. Bd2 {[%emt 0:03:22]} Rxe3 {[%emt 0:00:15]} 46. Bxe3 {[%emt 0:00:05]} Be4 {[%emt 0:00:16]} 47. Kf2 {[%emt 0:00:30]} Bc2 {[%emt 0:00:10]} 48. b4 {[%emt 0:00:10]} Bd3 {[%emt 0:00:15]} 49. c5 {[%emt 0:00:32]} Be4 {[%emt 0:00:17]} 50. Bd2 {[%emt 0:01:07]} Bc6 {[%emt 0:00:26]} 51. g3 {[%emt 0:00:36]} Be4 {[%emt 0:01:12]} 52. Ke3 {[%emt 0:00:13]} Kd5 {[%emt 0:00:43]} 53. Bc3 {[%emt 0:00:25]} h5 {[%emt 0:00:29]} 54. Kf4 {[%emt 0:00:28]} Bc2 {[%emt 0:00:38]} 55. Kg5 {[%emt 0:00:23]} Kc6 {[%emt 0:00:18]} 56. Kf6 {[%emt 0:00:11]} Bd3 {[%emt 0:00:29]} 57. Ke7 $11 {[%emt 0:00:11]} Bc2 {[%emt 0:00:15]} 58. Be1 {[%emt 0:00:08]} Bd3 {[%emt 0:00:16]} 59. Bf2 {[%emt 0:00:12]} Bc2 {[%emt 0:00:26]} 60. Kf6 {[%emt 0:00:11]} Bd3 {[%emt 0:00:35]} 61. g4 {[%emt 0:00:27]} hxg4 {[%emt 0:00:32]} 62. Kg5 {[%emt 0:00:06]} 1/2-1/2

[Event "FIDE WCCC U10 2018"]
[Site "Santiago de Compostela"]
[Date "2018.11.10"]
[Round "6"]
[White "Hagner, Bennet"]
[Black "Hartofylakas, Spyros"]
[Result "1-0"]
[ECO "C50"]
[WhiteElo "1912"]
[BlackElo "1651"]
[Annotator "NA"]
[PlyCount "99"]
[EventDate "2018.11.04"]
[EventType "swiss"]
[EventCountry "ESP"]
[SourceTitle "playchess.com"]
[Source "ChessBase"]
[SourceQuality "1"]
[TimeControl "40/5400+30:1800+30"]

1. e4 {[%emt 0:00:00]} e5 {[%emt 0:00:00]} 2. Nf3 {[%emt 0:00:00]} Nc6 {[%emt 0:00:00]} 3. Bc4 {[%emt 0:00:00]} Bc5 {[%emt 0:00:00]} 4. O-O {[%emt 0:00:00]} Nf6 {[%emt 0:00:11]} 5. d4 {[%emt 0:00:01]} Bxd4 {[%emt 0:00:30]} 6. Nxd4 {[%emt 0:00:13]} Nxd4 {[%emt 0:00:20]} 7. f4 {[%emt 0:00:31]} d6 {[%emt 0:00:57]} 8. fxe5 {[%emt 0:00:22]} dxe5 {[%emt 0:00:19]} 9. Bg5 {[%emt 0:00:06]} Qe7 {[%emt 0:02:50]} 10. Na3 {[%emt 0:01:39]} Rg8 {[%emt 0:03:03]} 11. c3 {[%emt 0:02:46]} Ne6 {[%emt 0:01:39]} 12. Bxf6 {[%emt 0:01:48]} gxf6 {[%emt 0:00:38]} 13. Kh1 $17 {[%emt 0:04:37] LiveBook: 3 Games} Bd7 {[%emt 0:05:33]} 14. Nc2 {[%emt 0:07:46]} O-O-O {[%emt 0:09:41]} 15. Qf3 {[%emt 0:09:58]} Ng5 {[%emt 0:08:06]} 16. Qxf6 {[%emt 0:09:26]} Qxf6 {[%emt 0:01:57]} 17. Rxf6 {[%emt 0:00:02]} Bc6 {[%emt 0:13:34]} 18. Ne3 {[%emt 0:05:22]} Bxe4 {[%emt 0:12:51]} 19. h4 {[%emt 0:01:11]} Nh3 {[%emt 0:02:13]} 20. Bxf7 {[%emt 0:09:12]} Rg3 {[%emt 0:02:04]} 21. Kh2 {[%emt 0:01:40]} Rxe3 {[%emt 0:03:50]} 22. Be6+ {[%emt 0:00:10]} Kb8 {[%emt 0:00:24]} 23. Bxh3 {[%emt 0:00:08]} Re2 {[%emt 0:09:10]} 24. Rd1 {[%emt 0:06:27]} Rg8 {[%emt 0:02:17]} 25. Rdf1 {[%emt 0:00:14]} a6 {[%emt 0:03:11]} 26. R6f2 {[%emt 0:02:43]} Re3 {[%emt 0:03:24]} 27. Rf8+ {[%emt 0:00:48]} Rxf8 {[%emt 0:00:10]} 28. Rxf8+ {[%emt 0:00:02]} Ka7 29. Rf2 {[%emt 0:12:52]} Kb6 {[%emt 0:04:06]} 30. Bg4 Kc5 31. Re2 {[%emt 0:01:25]} Rxe2 {[%emt 0:03:17]} 32. Bxe2 {[%emt 0:00:02]} Bb1 {[%emt 0:00:49]} 33. a3 {[%emt 0:01:14]} Kd5 {[%emt 0:01:38]} 34. Kg3 {[%emt 0:01:28]} Be4 {[%emt 0:01:31]} 35. Kf2 {[%emt 0:02:37]} c5 {[%emt 0:01:18]} 36. g4 {[%emt 0:00:51]} c4 {[%emt 0:01:38]} 37. Bf3 {[%emt 0:03:15]} b5 {[%emt 0:02:01]} 38. g5 {[%emt 0:02:58]} a5 {[%emt 0:02:35]} 39. h5 {[%emt 0:00:31]} a4 {[%emt 0:01:05]} 40. g6 {[%emt 0:00:00]} hxg6 {[%emt 0:00:00]} 41. h6 {[%emt 0:02:57]} Bxf3 {[%emt 0:01:01]} 42. Kxf3 {[%emt 0:00:21]} e4+ {[%emt 0:00:29]} 43. Ke3 {[%emt 0:00:17]} Ke6 {[%emt 0:00:19]} 44. h7 {[%emt 0:00:16]} Kf7 {[%emt 0:00:05]} 45. h8=Q {[%emt 0:00:35]} g5 {[%emt 0:00:03]} 46. Kxe4 {[%emt 0:00:12]} g4 {[%emt 0:00:05]} 47. Kf5 {[%emt 0:00:12]} g3 {[%emt 0:00:15]} 48. Qh7+ {[%emt 0:00:08]} Ke8 {[%emt 0:00:09]} 49. Ke6 {[%emt 0:00:06]} Kd8 {[%emt 0:00:03]} 50. Qd7# 1-0